Cogmind - Beta 16.1 @@@ ROGUE MODE // 2026.03.05 @ 21:11:32 Player: StaticNoob Result: Destroyed by H-77 Assassin with Coil Gun Performance ------------- Evolutions (7) 3500 Regions Visited (15) 3000 Robots Destroyed (143) 715 Value Destroyed (7369) 7369 Prototype IDs (45) 900 Alien Tech Used (2) 400 Bonus (8987) 8987 TOTAL SCORE: 24871 Bonus ------- High Alert Combat Kills 1426 Follower Combat Kills 4023 Met Zhirov 300 Met Warlord at Base 500 MAIN.C Attacked Warlord 500 Warlord Defense Kills 1870 Scanned by Researcher 500 Friendly Fire -132 Cogmind --------- Core Integrity 0/1300 Matter 277/300 Energy 100/100 System Corruption 13% Temperature Cool (0) Movement Core (50) Location -3/Testing Parts ------- > --- POWER (2) -------- (None) > --- PROPULSION (3) --- (None) > --- UTILITY (10) ----- Enhanced Optical Array Advanced Terrain Scan Processor Advanced Targeting Computer Advanced Target Analyzer Core Analyzer > --- WEAPON (6) ------- Nanosword > --- INVENTORY (5) ---- Improved Ion Engine Small Matter Pod (43) Advanced Point Defense System Gamma Rifle Advanced Variable Charge Gun Peak State ------------ > --- POWER ------------ Particle Reactor Micro Antimatter Reactor > --- PROPULSION ------- Armored Huge Wheel Centrium Wheel > --- UTILITY ---------- Advanced Heat Sink Experimental Heat Sink High-capacity Storage Unit Enhanced Optical Array Advanced Terrain Scan Processor Advanced Targeting Computer Core Analyzer Quantum Capacitor Advanced Point Defense System > --- WEAPON ----------- Gamma Rifle 1B-0RG's Assimilator > --- INVENTORY -------- Fission Core Advanced Heat Sink Large Storage Unit Energy Well Small Matter Pod Quantum Capacitor High-powered Tractor Beam Advanced Field Recycling Unit Transdimensional Reconstructor Improved Arc Projector Vortex Driver Vortex Driver Railgun Improved Proton Missile Launcher [Rating: 164] Favorites ----------- Power Heavy Antimatter Reactor Engine Subdweller Power Source Power Core Fission Core Reactor Heavy Antimatter Reactor Propulsion Armored Huge Wheel Treads Light Treads Leg Biometal Leg Wheel Armored Huge Wheel Utility Large Storage Unit Device Improved Cooling System Storage Large Storage Unit Processor Core Analyzer Protection Hardened Medium Armor Plating Weapon 1B-0RG's Assimilator Energy Gun Quantum Rifle Energy Cannon Powered Cannon Ballistic Gun Assault Rifle Ballistic Cannon Battle Cannon Launcher Grenade Launcher Slashing Weapon Nanosword Special Melee Weapon 1B-0RG's Assimilator Build | -11 -10 -10 -7 -5 -5 -5 -5 -4 -4 -4 -4 -4 -3 -3 -3 ------- Run | Yrd Mat Sub Scr Fac Upp Upp Zhi Pro Fac Upp Upp War Pro Res Tes Slots Evolved 14 | . . . . 10 . . . . 2 . . . . 2 . Power 1 | . . . . . . . . . 1 . . . . . . Propulsion 1 | . . . . . . . . . . . . . . 1 . Utility 8 | . . . . 6 . . . . 1 . . . . 1 . Weapon 4 | . . . . 4 . . . . . . . . . . . Parts Attached 115 | 6 3 12 4 9 5 6 2 . 8 1 1 4 6 23 25 Power 21 | 1 . 2 2 1 . 2 1 . 1 . . 1 . 7 3 Engine 5 | 1 . 2 1 . . . . . . . . . . . 1 Core 5 | . . . 1 1 . 2 . . . . . 1 . . . Reactor 11 | . . . . . . . 1 . 1 . . . . 7 2 Propulsion 19 | 2 . 2 1 1 . . . . . . . . 1 5 7 Treads 5 | 2 . 2 1 . . . . . . . . . . . . Leg 2 | . . . . . . . . . . . . . . . 2 Wheel 12 | . . . . 1 . . . . . . . . 1 5 5 Hover . | . . . . . . . . . . . . . . . . Flight . | . . . . . . . . . . . . . . . . Utility 46 | 1 3 2 1 7 1 3 1 . 6 1 1 2 3 6 8 Device 17 | . . . . 4 . 2 . . 3 . . 2 1 3 2 Storage 9 | 1 2 . . . . . . . 1 . . . . 2 3 Processor 11 | . . . 1 1 1 . . . 1 1 1 . 1 1 3 Hackware . | . . . . . . . . . . . . . . . . Protection 9 | . 1 2 . 2 . 1 1 . 1 . . . 1 . . Artifact . | . . . . . . . . . . . . . . . . Weapon 29 | 2 . 6 . . 4 1 . . 1 . . 1 2 5 7 Energy Gun 11 | . . 1 . . 2 1 . . . . . . 2 2 3 Energy Cannon 10 | . . 3 . . 1 . . . . . . 1 . 3 2 Ballistic Gun 2 | 2 . . . . . . . . . . . . . . . Ballistic Cannon 1 | . . 1 . . . . . . . . . . . . . Launcher 3 | . . 1 . . . . . . 1 . . . . . 1 Special Weapon . | . . . . . . . . . . . . . . . . Impact Weapon . | . . . . . . . . . . . . . . . . Slashing Weapon 1 | . . . . . . . . . . . . . . . 1 Piercing Weapon . | . . . . . . . . . . . . . . . . Special Melee Weapon 1 | . . . . . 1 . . . . . . . . . . Unidentified Prototypes 12 | . . . . . 1 . 3 . 1 . . 1 . . 6 Parts Lost 53 | . . 8 . 1 2 1 . . 1 2 . 1 1 13 23 Power 12 | . . 2 . . 2 . . . . . . . . 4 4 Propulsion 13 | . . 2 . . . . . . . . . . . 3 8 Utility 14 | . . 2 . 1 . 1 . . 1 1 . . 1 3 4 Weapon 14 | . . 2 . . . . . . . 1 . 1 . 3 7 Highest Loss Streak 8 | . . 3 . 1 2 1 . . 1 2 . 1 1 4 8 To Critical Strikes 1 | . . . . . . . . . . . . . . . 1 Average Backups 11 | . 6 11 9 8 8 11 13 13 12 11 11 12 12 14 12 Power . | . 1 1 . . . . 1 1 1 1 1 . . . . Propulsion 1 | . . 1 . 1 2 2 2 2 2 2 2 2 1 . . Utility 4 | . 1 3 4 3 3 4 5 5 5 5 6 6 6 5 3 Weapon 4 | . 3 5 2 3 2 4 4 4 3 1 1 2 2 6 7 Tool/Special . | . . . . . . . . . . . . . . . . Unused Backups 28 | . . 7 9 . 1 1 . 1 3 . 1 2 . . 3 Power 2 | . . 1 1 . . . . . . . . . . . . Propulsion 4 | . . 1 1 . . . . . 1 . 1 . . . . Utility 8 | . . . 4 . 1 . . 1 . . . 2 . . . Weapon 14 | . . 5 3 . . 1 . . 2 . . . . . 3 Tool/Special . | . . . . . . . . . . . . . . . . Average Slot Usage (%) 77 | . 95 96 80 62 71 69 70 70 69 67 68 67 67 72 76 Engine 4 | . 14 13 11 3 . . . . . . . . . . . Core 2 | . . . 5 6 . 4 3 . . . . . 5 1 . Reactor 3 | . . . . . . . 1 5 8 10 10 9 5 6 6 Treads 9 | . 28 27 25 . . . . . . . . . . . . Wheel 3 | . . . . 4 5 5 5 5 5 5 5 5 5 10 6 Device 11 | . . . . 18 16 19 23 23 22 21 21 21 10 16 11 Storage 8 | . 14 13 12 5 5 5 5 5 5 5 5 5 5 5 7 Processor 9 | . . . 2 11 11 11 11 11 10 12 15 15 20 19 23 Protection 6 | . 9 13 9 4 11 8 5 5 5 2 . . 4 . . Energy Gun 2 | . . 1 . . 6 4 5 5 4 2 . . 4 1 8 Energy Cannon 5 | . . 12 12 5 7 . . . . 2 5 4 . 2 4 Ballistic Gun 2 | . 28 6 . . . . . . . . . . . . . Ballistic Cannon 1 | . . 5 . . . . . . . . . . . . . Special Melee Weapon 2 | . . . . . . 5 5 5 5 5 5 5 5 4 1 Peak Build Rating 164 | 6 9 30 42 72 114 126 130 129 148 143 140 147 144 164 160 Average Rating 90 | 5 8 14 36 66 72 122 127 129 140 138 138 140 138 154 120 On Entrance 94 | . 6 9 30 42 72 114 126 129 129 141 137 140 144 141 158 Avg Prop Armor Cover (%) . | . . . . . . . . . . . . . . . . Naked Turns . | . . . . . . . . . . . . . . . . Heaviest Build 157 | 11 31 39 49 85 118 132 117 117 134 145 139 141 140 157 157 Greatest Support 48 | 40 40 40 48 48 28 28 28 28 28 28 28 28 28 44 43 Greatest Overweight (x) 33 | 1 . 1 1 3 4 4 4 4 4 5 4 5 4 4 33 Average Overweight (x) 2 | . . . . 2 2 4 3 4 4 4 4 4 4 2 3 Largest Inventory Capacity 20 | 8 15 15 15 15 15 15 15 15 15 15 15 15 15 20 20 Average Capacity 15 | 7 12 15 15 15 15 15 15 15 15 15 15 15 15 18 19 Most Carried 20 | 1 9 15 15 15 15 15 15 15 15 15 15 15 15 20 20 Average Carried 13 | . 6 13 14 14 14 13 15 15 14 14 14 14 13 15 13 Final Capacity 20 | 8 15 15 15 15 15 15 15 15 15 15 15 15 15 20 5 Final Carried 19 | 1 8 15 15 15 12 15 15 15 14 15 15 14 13 19 5 Class Distribution -------------------- 70% | Mutant 15% | Scavenger-Mutant 7% | Derelict-Mutant 4% | Scavenger-Gunner Dominant Class ---------------- Mutant | -10/Materials Mutant | -10/Subcaves Mutant | -7/Scraptown Mutant | -5/Factory Derelict-Executioner | -5/Upper Caves Mutant | -5/Upper Caves Derelict-Mutant | -5/Zhirov Derelict-Mutant | -4/Proximity Caves Derelict-Mutant | -4/Factory Mutant | -4/Upper Caves Mutant | -4/Upper Caves Mutant | -4/Warlord Scavenger-Mutant | -3/Proximity Caves Scavenger-Mutant | -3/Research Scavenger-Gunner | -3/Testing Resources | -11 -10 -10 -7 -5 -5 -5 -5 -4 -4 -4 -4 -4 -3 -3 -3 ----------- Run | Yrd Mat Sub Scr Fac Upp Upp Zhi Pro Fac Upp Upp War Pro Res Tes Matter Collected 10327 | 174 . 689 114 4 300 1093 . 60 312 1187 722 2 1910 3091 669 Remotely 2474 | . . . . . . . . . 62 245 377 . 281 1509 . Salvage Created 6979 | 13 . 499 . 76 191 246 . . 518 343 98 907 507 1938 1643 Parts 314 | 3 . 37 . 1 3 10 . . 26 19 . 37 24 79 75 Haulers Intercepted 1 | . . . . . . . . . 1 . . . . . . Recyclers Shooed 4 | 1 . . . . . . . . . . . . . 3 . Parts Field Recycled 115 | . . . . 23 . 39 . . 2 14 12 . 3 14 8 Retrieved Matter 2062 | . . . . 428 . 539 . . 17 345 305 . 33 322 73 Parts Self-Destructed 66 | . . 4 . . 8 23 . . . 16 7 . 8 . . Prevented 12 | . . . . . . . . . . 7 1 . 4 . . Parts Restored . | . . . . . . . . . . . . . . . . Kills | -11 -10 -10 -7 -5 -5 -5 -5 -4 -4 -4 -4 -4 -3 -3 -3 ------- Run | Yrd Mat Sub Scr Fac Upp Upp Zhi Pro Fac Upp Upp War Pro Res Tes Combat Hostiles Destroyed 106 | . . 18 . 1 3 4 . . 9 6 1 14 6 20 24 Guns 16 | . . 4 . . . 2 . . 2 . . . 2 4 2 Cannons 31 | . . 10 . . 2 . . . . 2 1 1 . 6 9 AOE 45 | . . 4 . . . 2 . . 7 4 . 10 4 4 10 Classes Destroyed 19 | 1 . 3 . . 2 3 . . 4 . 1 2 . 2 1 Worker 12 | . . . . . . . . . . . . . . 6 6 Builder 5 | . . . . . . . . . . . . . . 1 4 Tunneler 1 | 1 . . . . . . . . . . . . . . . Hauler 1 | . . . . . . . . . 1 . . . . . . Recycler 4 | . . . . . . . . . . . . . . 3 1 Operator 1 | . . . . . . . . . 1 . . . . . . Watcher 4 | . . . . . . . . . 1 . . . . 2 1 Swarmer 18 | . . 4 . . . 2 . . 3 3 . 1 2 3 . Grunt 39 | . . . . . 2 1 . . 5 . . 5 5 11 10 Brawler 4 | . . . . . 1 . . . . 1 . 1 1 . . Duelist 1 | . . . . . . . . . . . 1 . . . . Protector 3 | . . . . . . . . . . . . 2 . . 1 Researcher 5 | . . . . . . . . . . . . . . . 5 Sentry 4 | . . 1 . 1 . . . . . . . . . 2 . Hunter 14 | . . . . . . 1 . . . 2 . 1 . 3 7 Programmer 11 | . . . . . . . . . 1 . . 3 . 2 5 Investigator 1 | . . . . . . . . . . . . . . . 1 Striker 1 | . . . . . . . . . . . . 1 . . . Protovariant H 1 | . . . . . . . . . . . . . . . 1 Subdweller 13 | . . 13 . . . . . . . . . . . . . Decomposer 3 | . . . . . . 1 . . . . 1 . 1 . . Samaritan 3 | . . . . . . 2 . . . 1 . . . . . Best Kill Streak 18 | 1 . 4 . 1 3 2 . . 7 4 1 11 3 9 18 Combat Bots Only 11 | . . 4 . 1 3 2 . . 4 4 1 11 3 4 11 Max Kills in Single Turn 6 | 1 . 3 . 1 1 1 . . 6 2 1 3 3 3 4 Gunslinging . | . . . . . . . . . . . . . . . . Exploded 3 | . . 3 . . . 1 . . 3 2 . 3 2 2 3 Melee . | . . . . . . . . . . . . . . . . Uniques/NPCs Destroyed . | . . . . . . . . . . . . . . . . Combat | -11 -10 -10 -7 -5 -5 -5 -5 -4 -4 -4 -4 -4 -3 -3 -3 -------- Run | Yrd Mat Sub Scr Fac Upp Upp Zhi Pro Fac Upp Upp War Pro Res Tes Hostile Shots Fired 674 | . . 105 . 18 14 54 . 1 40 32 6 20 38 145 201 Missed 188 | . . 32 . 6 1 10 . . 14 16 4 3 12 40 50 Hits 486 | . . 73 . 12 13 44 . 1 26 16 2 17 26 105 151 Melee 3 | . . . . . 1 . . . . 2 . . . . . Projectile 483 | . . 73 . 12 12 44 . 1 26 14 2 17 26 105 151 AOE 6 | . . 1 . . . . . . . . . 4 . . 1 Critical Strikes 32 | . . 1 . . 1 1 . . . 1 . 1 1 13 13 Part Disruptions 1 | . . . . . . . . . 1 . . . . . . Damage Taken 10606 | . . 1496 . 206 203 726 . 35 586 373 67 549 639 2581 3145 Core 1994 | . . 188 . 20 . 72 . . 111 26 38 101 145 575 718 Absorbed by Shields 1111 | . . . . 76 72 117 . 13 190 132 20 173 170 . 148 Ignored by Resistances 15 | . . . . . . . . . 15 . . . . . . Regen/Repaired (Parts) 1433 | . . . . . . 168 . . 153 82 41 81 295 571 42 Core Remaining (%) 69 | 100 . . 24 . . . . 90 . . . . 63 . . Volleys Fired 450 | 8 3 66 . 14 15 21 1 5 25 15 15 25 25 130 82 Largest 4 | 2 2 2 . 1 2 1 1 1 1 1 1 1 1 1 4 Hottest 428 | 40 40 128 . 40 265 94 94 94 94 94 63 63 63 105 428 Shots Fired 542 | 16 6 118 . 14 16 21 1 5 25 15 15 25 25 133 107 Gun 269 | 16 6 52 . . 1 19 1 5 20 5 . . 21 77 46 Cannon 230 | . . 64 . 14 15 . . . . 8 15 8 . 52 54 Launcher 43 | . . 2 . . . 2 . . 5 2 . 17 4 4 7 Special . | . . . . . . . . . . . . . . . . Kinetic 108 | 16 6 86 . . . . . . . . . . . . . Thermal 262 | . . 30 . 14 16 19 1 5 20 5 . . 21 60 71 Explosive 11 | . . 2 . . . 2 . . . . . . . . 7 Electromagnetic 142 | . . . . . . . . . 5 10 15 25 4 68 15 Entropic 19 | . . . . . . . . . . . . . . 5 14 Robot Hit Streak 34 | 7 7 34 . 10 4 8 7 . 5 8 6 7 9 12 6 Robot Miss Streak 5 | 1 1 1 . 1 2 2 . . 3 1 3 1 2 3 5 Penetration Max . | . . . . . . . . . . . . . . . . Secondary Targets . | . . . . . . . . . . . . . . . . Capacitor 243 | . . . . . . . . . 10 13 15 8 21 129 47 Shots Hit Robots 355 | 14 5 90 . 9 9 15 1 . 9 12 9 10 16 97 59 Core Hits 257 | 3 2 29 . 2 3 12 . . 15 12 4 38 20 50 67 Critical Kills 11 | . . . . 1 1 . . . . . . . . 5 4 Critical Parts Destroyed 2 | . . . . . . . . . . . . . . . 2 Critical Strikes 26 | . . 3 . 1 1 . . . . 1 . . 1 7 12 Burn 1 | . . . . . . . . . . . . . 1 . . Meltdown 9 | . . . . 1 1 . . . . . . . . 5 2 Destroy 6 | . . 2 . . . . . . . . . . . . 4 Blast 1 | . . 1 . . . . . . . . . . . . . Corrupt 3 | . . . . . . . . . . 1 . . . 1 1 Sunder 6 | . . . . . . . . . . . . . . 1 5 Melee Attacks 4 | . . . . . . . . . . . . . . . 4 Impact . | . . . . . . . . . . . . . . . . Slashing 4 | . . . . . . . . . . . . . . . 4 Piercing . | . . . . . . . . . . . . . . . . Sneak Attacks 4 | . . . . . . . . . . . . . . . 4 Combat Hostiles . | . . . . . . . . . . . . . . . . Follow-up Attacks . | . . . . . . . . . . . . . . . . Damage Inflicted 23158 | 154 47 1626 . 452 497 507 36 . 1717 793 168 2893 1174 4210 8884 Guns 3558 | 154 47 549 . . 34 337 36 . 174 143 . . 281 1093 710 Cannons 6827 | . . 856 . 452 463 . . . . 175 168 134 . 1861 2718 Explosions 12275 | . . 221 . . . 170 . . 1543 475 . 2759 893 1256 4958 Melee 498 | . . . . . . . . . . . . . . . 498 Ramming . | . . . . . . . . . . . . . . . . Kinetic 1285 | 154 47 1084 . . . . . . . . . . . . . Thermal 11570 | . . 321 . 452 497 337 36 . 1336 305 . 1233 812 2115 4126 Explosive 3732 | . . 221 . . . 170 . . . . . . . 290 3051 Electromagnetic 4885 | . . . . . . . . . 381 488 168 1660 362 1364 462 Impact . | . . . . . . . . . . . . . . . . Slashing 498 | . . . . . . . . . . . . . . . 498 Piercing . | . . . . . . . . . . . . . . . . Entropic 1188 | . . . . . . . . . . . . . . 441 747 Highest Corruption 13 | . . . . . . . . . . . . 1 1 6 13 Average Corruption 4 | . . . . . . . . . . . . 1 1 4 7 Corruption Purged . | . . . . . . . . . . . . . . . . Corruption Blocked 1 | . . . . . . . . . . . . . . . 1 Effects 61 | . . . . . . . . . . . . 1 4 22 34 Message Errors 10 | . . . . . . . . . . . . . . 6 4 Matter Fused 14 | . . . . . . . . . . . . . 1 4 9 Heat Flow Errors 8 | . . . . . . . . . . . . 1 . 1 6 Energy Discharges 7 | . . . . . . . . . . . . . 2 3 2 Parts Rejected 2 | . . . . . . . . . . . . . . 1 1 Parts Fused 2 | . . . . . . . . . . . . . . 1 1 Data Loss (minor) 8 | . . . . . . . . . . . . . 1 1 6 Data Loss (major) 4 | . . . . . . . . . . . . . . 2 2 Misfires 4 | . . . . . . . . . . . . . . 3 1 Weapon Failures 2 | . . . . . . . . . . . . . . . 2 Overload Shots 3 | . . . . . 1 . . . . . . . . . 2 Overflow Damage 1171 | . . 12 . 8 38 . . . 162 . . 8 25 162 756 Projectiles 487 | . . . . 8 38 . . . . . . . . 80 361 Explosions 580 | . . 12 . . . . . . 162 . . 8 25 82 291 Melee 104 | . . . . . . . . . . . . . . . 104 Knockbacks 6 | . . 6 . . . . . . . . . . . . . Impact . | . . . . . . . . . . . . . . . . Kinetic 6 | . . 6 . . . . . . . . . . . . . Secondary . | . . . . . . . . . . . . . . . . Self-Inflicted Damage 299 | . . 29 . . . . . . . 44 . . . 73 153 Shots 7 | . . 1 . . . . . . . 2 . . . 2 2 Rammed . | . . . . . . . . . . . . . . . . Targets Rammed . | . . . . . . . . . . . . . . . . Kicked . | . . . . . . . . . . . . . . . . Crushed . | . . . . . . . . . . . . . . . . Highest Temperature 569 | . 10 52 . 12 198 72 . . 145 78 27 99 25 172 569 Average Temperature 85 | . 7 19 . 4 43 19 . . 63 29 12 25 14 48 153 Received Heat Transfer 1451 | . . 384 . 30 86 78 . . 48 9 9 41 150 296 320 Effects 8 | . . . . . . . . . . . . . . . 8 Shutdowns 5 | . . . . . . . . . . . . . . . 5 Short Circuit 1 | . . . . . . . . . . . . . . . 1 Damage (minor) 1 | . . . . . . . . . . . . . . . 1 Damage (core) 1 | . . . . . . . . . . . . . . . 1 Siege Activations . | . . . . . . . . . . . . . . . . Martial Activations . | . . . . . . . . . . . . . . . . Shielding Activations . | . . . . . . . . . . . . . . . . Robots Disrupted 1 | . . . . . . . . . . . . . . 1 . Combat Hostiles 1 | . . . . . . . . . . . . . . 1 . Robots Corrupted 9 | . . . . . . . . . . . . 3 . 5 1 Combat Hostiles 8 | . . . . . . . . . . . . 3 . 4 1 Parts Fried 15 | . . . . . . . . . 1 . . 4 . 8 2 Impact Corruptions . | . . . . . . . . . . . . . . . . Robots Melted 10 | . . . . 1 1 . . . . . . . 1 5 2 Combat Hostiles 6 | . . . . 1 1 . . . . . . . . 2 2 Parts Melted 26 | . . 2 . 2 1 2 . . 1 1 . 4 1 6 6 Heat Transferred 10211 | . . 544 . . 50 555 37 . 972 285 . 800 1203 2102 3663 Parts Sabotaged . | . . . . . . . . . . . . . . . . Parts Stolen . | . . . . . . . . . . . . . . . . Parts Stripped . | . . . . . . . . . . . . . . . . Power Chain Reactions 15 | . . . . . . . . . 2 1 . 7 3 2 . Alert | -11 -10 -10 -7 -5 -5 -5 -5 -4 -4 -4 -4 -4 -3 -3 -3 ------- Run | Yrd Mat Sub Scr Fac Upp Upp Zhi Pro Fac Upp Upp War Pro Res Tes Maximum Alert Level 5 | . . . . . . . . . 3 . . . . 3 5 Low Security (%) 34 | 100 100 . . 100 . . . . 26 . . . . 14 . Level 1 21 | . . . . . . . . . 49 . . . . 31 10 Level 2 20 | . . . . . . . . . . . . . . 52 14 Level 3 6 | . . . . . . . . . 23 . . . . . 8 Level 4 17 | . . . . . . . . . . . . . . . 67 Level 5 . | . . . . . . . . . . . . . . . . High Security . | . . . . . . . . . . . . . . . . Max Security . | . . . . . . . . . . . . . . . . Peak Influence 1601 | 5 . . . 32 . . . . 884 . . . . 700 1601 Initial 376 | . . . . . . . . . . . . . . 129 376 Average 451 | . . . . 2 . . . . 381 . . . . 386 1017 Influence Increases 7192 | 5 . 160 . 40 70 367 . 29 1192 379 187 962 529 1435 1837 Destroy 0b10 Robot/C 3640 | . . 100 . 20 60 280 . 20 300 260 100 580 340 740 840 Destroy 0b10 Robot/NC 190 | 5 . . . . . . . . 15 . . 15 . 70 85 Destroy Leader 426 | . . . . 10 10 10 . . 64 20 20 . 20 168 104 Allied During Kill 1515 | . . . . . . 77 . 9 154 99 67 307 154 272 376 Successful Hack 111 | . . . . . . . . . 76 . . . . 17 18 Disable Machine 405 | . . . . . . . . . 300 . . . . 45 60 Anti-Garrison Action 150 | . . . . . . . . . 150 . . . . . . Destroy Structure 560 | . . . . 10 . . . . 118 . . . . 108 324 Lose Combat Pursuer 195 | . . 60 . . . . . . 15 . . 60 15 15 30 Influence Decreases 5677 | 5 . 130 30 40 70 367 . 29 344 677 475 488 1072 958 992 Entered New Map 1806 | . . . 30 . . . . . . 315 105 262 736 64 294 Time Decay 2829 | 5 . 128 . 40 50 337 . 29 274 302 350 136 316 464 398 Lost Part 432 | . . 2 . . 20 10 . . 10 20 . 10 . 130 230 Lost Ally 610 | . . . . . . 20 . . 60 40 20 80 20 300 70 Squads Dispatched 27 | . 2 . . 2 . . . . 5 . . . 1 7 10 Investigation 4 | . 2 . . . . . . . . . . . . 2 . Extermination 6 | . . . . 1 . . . . 2 . . . . 1 2 Reinforcement 9 | . . . . . . . . . 1 . . . . 1 7 Assault 5 | . . . . . . . . . 2 . . . 1 1 1 Garrison 3 | . . . . 1 . . . . . . . . . 2 . Intercept . | . . . . . . . . . . . . . . . . Searches Triggered . | . . . . . . . . . . . . . . . . Construction Impeded 1 | . . . . . . . . . . . . . . . 1 Haulers Reinforced 1 | . . . . . . . . . . . . . . . 1 Active Scanning Responses . | . . . . . . . . . . . . . . . . Cargo Convoy Interrupts . | . . . . . . . . . . . . . . . . Stealth | -11 -10 -10 -7 -5 -5 -5 -5 -4 -4 -4 -4 -4 -3 -3 -3 --------- Run | Yrd Mat Sub Scr Fac Upp Upp Zhi Pro Fac Upp Upp War Pro Res Tes Distress Signals 8 | . . . . . . . . . 2 . . . . 3 3 Communications Jammed . | . . . . . . . . . . . . . . . . Distress Signals . | . . . . . . . . . . . . . . . . Times Spotted 276 | . 5 22 . 5 3 17 . 1 20 16 8 44 26 50 59 Peak Tracking Total 13 | . 3 6 . 4 3 10 . 1 7 7 3 13 7 5 13 Tactical Retreats 8 | . . 2 . . . . . . 1 . . 2 1 1 1 Traps | -11 -10 -10 -7 -5 -5 -5 -5 -4 -4 -4 -4 -4 -3 -3 -3 ------- Run | Yrd Mat Sub Scr Fac Upp Upp Zhi Pro Fac Upp Upp War Pro Res Tes Traps Triggered 2 | . 1 . . . . . . . 1 . . . . . . Indirectly 1 | . . . . . . . . . 1 . . . . . . Trap Hack Attempts . | . . . . . . . . . . . . . . . . Triggered . | . . . . . . . . . . . . . . . . Disarmed . | . . . . . . . . . . . . . . . . Reprogrammed . | . . . . . . . . . . . . . . . . Reused . | . . . . . . . . . . . . . . . . Traps Extracted . | . . . . . . . . . . . . . . . . Installed 1 | . . 1 . . . . . . . . . . . . . Triggered . | . . . . . . . . . . . . . . . . Machines | -11 -10 -10 -7 -5 -5 -5 -5 -4 -4 -4 -4 -4 -3 -3 -3 ---------- Run | Yrd Mat Sub Scr Fac Upp Upp Zhi Pro Fac Upp Upp War Pro Res Tes Machines Disabled 34 | . . 1 . . . 1 . . 21 1 . 1 1 3 5 Max in Single Turn 6 | . . 1 . . . 1 . . 6 1 . 1 1 2 1 Garrison Access 1 | . . . . . . . . . 1 . . . . . . Machines Repaired . | . . . . . . . . . . . . . . . . Machines Dismantled . | . . . . . . . . . . . . . . . . Machines Sabotaged . | . . . . . . . . . . . . . . . . Overloaded Fab Kills . | . . . . . . . . . . . . . . . . Hacking | -11 -10 -10 -7 -5 -5 -5 -5 -4 -4 -4 -4 -4 -3 -3 -3 --------- Run | Yrd Mat Sub Scr Fac Upp Upp Zhi Pro Fac Upp Upp War Pro Res Tes Machines Accessed 33 | . 1 1 . 4 . 2 4 1 6 . . 6 . 5 3 Terminals 11 | . 1 . . 2 . 1 . 1 3 . . . . 1 2 Fabricators 4 | . . . . 2 . . . . 2 . . . . . . Repair Stations 1 | . . . . . . . . . 1 . . . . . . Recycling Units . | . . . . . . . . . . . . . . . . Scanalyzers 4 | . . . . . . . . . . . . . . 3 1 Garrison Access 1 | . . . . . . . . . . . . . . 1 . Total Hacks 81 | . 2 1 . 6 . 8 17 1 13 . . 15 . 12 6 Successful 53 | . . 1 . 1 . 8 17 1 5 . . 15 . 3 2 Failed 28 | . 2 . . 5 . . . . 8 . . . . 9 4 Catastrophic 9 | . 1 . . 1 . . . . 4 . . . . 2 1 Database Lockouts . | . . . . . . . . . . . . . . . . Manual 13 | . 2 . . 1 . . . . 3 . . . . 3 4 Terminals 28 | . 2 . . 2 . 7 . 1 6 . . . . 5 5 Fabricators 9 | . . . . 4 . . . . 5 . . . . . . Repair Stations 2 | . . . . . . . . . 2 . . . . . . Recycling Units . | . . . . . . . . . . . . . . . . Scanalyzers 7 | . . . . . . . . . . . . . . 6 1 Garrison Access 1 | . . . . . . . . . . . . . . 1 . Terminal Hacks 46 | . . 1 . . . 8 17 1 1 . . 15 . 1 2 Record 27 | . . . . . . 7 5 1 . . . 14 . . . Part Schematic 4 | . . . . . . . 4 . . . . . . . . Robot Analysis 6 | . . . . . . . 4 . 1 . . . . . 1 Prototype ID Bank 4 | . . . . . . . 4 . . . . . . . . Open Door 2 | . . . . . . 1 . . . . . 1 . . . Locate Traps 1 | . . . . . . . . . . . . . . . 1 Zone Layout 1 | . . . . . . . . . . . . . . 1 . Proto ID Catalog 1 | . . 1 . . . . . . . . . . . . . Fabricator Hacks 2 | . . . . 1 . . . . 1 . . . . . . Network Status 2 | . . . . 1 . . . . 1 . . . . . . Repair Station Hacks 2 | . . . . . . . . . 2 . . . . . . Scan Component 1 | . . . . . . . . . 1 . . . . . . Repair 1 | . . . . . . . . . 1 . . . . . . Recycling Unit Hacks . | . . . . . . . . . . . . . . . . Scanalyzer 2 | . . . . . . . . . . . . . . 2 . Insert Component 1 | . . . . . . . . . . . . . . 1 . Retrieve Study 1 | . . . . . . . . . . . . . . 1 . Garrison Access Hacks . | . . . . . . . . . . . . . . . . Unauthorized Hacks 1 | . . . . . . . . . 1 . . . . . . Terminals . | . . . . . . . . . . . . . . . . Fabricators 1 | . . . . . . . . . 1 . . . . . . Liberate 1 | . . . . . . . . . 1 . . . . . . Repair Stations . | . . . . . . . . . . . . . . . . Recycling Units . | . . . . . . . . . . . . . . . . Scanalyzers . | . . . . . . . . . . . . . . . . Garrison Access . | . . . . . . . . . . . . . . . . Data Cores Recovered . | . . . . . . . . . . . . . . . . Used . | . . . . . . . . . . . . . . . . Hacking Detections 19 | . 1 . . 4 . . . . 6 . . . . 5 3 Full Trace Events 2 | . 1 . . . . . . . . . . . . 1 . Feedback Events . | . . . . . . . . . . . . . . . . Feedback Blocked . | . . . . . . . . . . . . . . . . Robot Schematics Acquired 4 | . . . . . . . . . . . . . . . 4 Robots Built . | . . . . . . . . . . . . . . . . Authchips . | . . . . . . . . . . . . . . . . Time . | . . . . . . . . . . . . . . . . Total Robot Build Rating . | . . . . . . . . . . . . . . . . Part Schematics Acquired 15 | . . . . . . . 4 . . . . . . . 11 Parts Built . | . . . . . . . . . . . . . . . . Authchips . | . . . . . . . . . . . . . . . . Time . | . . . . . . . . . . . . . . . . Total Part Build Rating . | . . . . . . . . . . . . . . . . Part Studies Acquired 1 | . . . . . . . . . . . . . . 1 . Parts Repaired 1 | . . . . . . . . . 1 . . . . . . Time 18 | . . . . . . . . . 18 . . . . . . Parts Recycled . | . . . . . . . . . . . . . . . . Recycled Matter . | . . . . . . . . . . . . . . . . Retrieved Matter . | . . . . . . . . . . . . . . . . Retrieved Components . | . . . . . . . . . . . . . . . . Parts Scanalyzed . | . . . . . . . . . . . . . . . . Part Schematics Acquired . | . . . . . . . . . . . . . . . . Parts Damaged . | . . . . . . . . . . . . . . . . Bothacking | -11 -10 -10 -7 -5 -5 -5 -5 -4 -4 -4 -4 -4 -3 -3 -3 ------------ Run | Yrd Mat Sub Scr Fac Upp Upp Zhi Pro Fac Upp Upp War Pro Res Tes Used RIF Installer . | . . . . . . . . . . . . . . . . Robots Hacked . | . . . . . . . . . . . . . . . . Non-combat . | . . . . . . . . . . . . . . . . Combat . | . . . . . . . . . . . . . . . . Robot Hacks Applied . | . . . . . . . . . . . . . . . . Relay Couplers Released . | . . . . . . . . . . . . . . . . Fabnet Peak Effective % . | . . . . . . . . . . . . . . . . Robots Rewired 4 | . . . . . . . . . . 2 . . 1 . 1 Allies Hacked 9 | . . . . . . . . . . . . 1 . 5 3 Hacks Repelled . | . . . . . . . . . . . . . . . . Allies | -11 -10 -10 -7 -5 -5 -5 -5 -4 -4 -4 -4 -4 -3 -3 -3 -------- Run | Yrd Mat Sub Scr Fac Upp Upp Zhi Pro Fac Upp Upp War Pro Res Tes Total Allies 7 | . . . . . . . . . . 2 . . 1 . 4 Largest Group 4 | . . . . . . . . . . 1 . . 1 . 4 Highest-Rated Group 311 | . . . . . . . . . . 49 . . 42 . 311 Highest-Rated Ally 153 | . . . . . . . . . . 49 . . 42 . 153 Total Orders . | . . . . . . . . . . . . . . . . Ally Attacks 634 | . . . . . . 53 . 6 59 28 36 134 59 176 83 Total Damage 21679 | . . . . . . 1450 . 209 1599 946 1268 4209 2933 5001 4064 Kills 105 | . . . . . . 11 . 1 6 7 8 19 12 22 19 Allies Corrupted 7 | . . . . . . . . . . . 1 . . 5 1 Allies Melted 5 | . . . . . . . . . 2 . . . . 3 . Borg Created 46 | . . . . . . 8 . . 2 5 1 . 11 19 . Largest Collective 6 | . . . . . . 5 . . 6 5 5 . 5 5 . Intel | -11 -10 -10 -7 -5 -5 -5 -5 -4 -4 -4 -4 -4 -3 -3 -3 ------- Run | Yrd Mat Sub Scr Fac Upp Upp Zhi Pro Fac Upp Upp War Pro Res Tes Active Infowar (turns) 5831 | . . . . 254 . 1364 284 476 521 . . . 821 1165 946 Optics 2932 | . . . . . . . . . . . . . 821 1165 946 Terrain 2899 | . . . . 254 . 1364 284 476 521 . . . . . . Robot Analysis Total 6 | . . . . . . . 4 . 1 . . . . . 1 Derelict Logs Recovered 13 | . . 1 4 . 2 2 . 1 . 2 1 . . . . Drone Launches . | . . . . . . . . . . . . . . . . Drone Recoveries . | . . . . . . . . . . . . . . . . Exploration | -11 -10 -10 -7 -5 -5 -5 -5 -4 -4 -4 -4 -4 -3 -3 -3 ------------- Run | Yrd Mat Sub Scr Fac Upp Upp Zhi Pro Fac Upp Upp War Pro Res Tes Turns Passed 15126 | 93 371 3093 1855 459 493 1985 284 476 666 676 796 864 904 1165 946 Spaces Moved 8353 | 41 138 1751 1105 306 326 1165 164 282 331 358 469 472 494 625 326 Core 12 | 4 . . . . . . . . . . . . . . 8 Treads 3045 | 37 138 1751 1105 14 . . . . . . . . . . . Legs 78 | . . . . . . . . . . . . . . . 78 Wheels 5218 | . . . . 292 326 1165 164 282 331 358 469 472 494 625 240 Hover . | . . . . . . . . . . . . . . . . Flight . | . . . . . . . . . . . . . . . . Fastest Speed 50 | 50 160 160 160 115 130 160 145 160 160 160 160 160 160 124 112 Average Speed 158 | 150 160 160 166 135 130 160 159 160 160 160 160 160 160 132 211 Slowest Speed 1700 | 160 160 240 250 250 160 160 160 160 160 175 160 175 160 148 1700 Overloaded Moves . | . . . . . . . . . . . . . . . . Propulsion Burnouts . | . . . . . . . . . . . . . . . . Robots Hopped . | . . . . . . . . . . . . . . . . Potential Cave-ins 1 | . . . . . . . . . . . 1 . . . . Cave-ins Triggered . | . . . . . . . . . . . . . . . . Teleports 1 | . . . . . . . . . . . . . . . 1 Exploration Rate (%) 51 | 4 28 93 56 7 55 97 62 54 14 62 71 73 74 19 49 Regions Visited 15 Branch Regions 11 Pre-discovered Areas 9 | . . 1 1 . . . 3 . . 2 1 1 . . . Known Exits Taken 5 | . . . . . 1 . . 1 . . . 1 1 1 . Unknown Exits Taken 10 | 1 1 1 1 1 . 1 1 . 1 1 1 . . . . Scrap Searched 21 | . . 5 4 . 3 3 . . . . 2 . 4 . . Spaces Dug 36 | . . . . 3 2 . . 4 6 . . . . 2 19 Terrain Destroyed 394 | . . 14 . 5 6 14 . 4 40 19 . 20 31 57 184 Melee . | . . . . . . . . . . . . . . . . Projectile 55 | . . . . 5 6 1 . 4 7 . . . . 5 27 AOE 339 | . . 14 . . . 13 . . 33 19 . 20 31 52 157 Terrain Rammed . | . . . . . . . . . . . . . . . . Walls Destroyed . | . . . . . . . . . . . . . . . . Machines Disabled . | . . . . . . . . . . . . . . . . Actions | -11 -10 -10 -7 -5 -5 -5 -5 -4 -4 -4 -4 -4 -3 -3 -3 --------- Run | Yrd Mat Sub Scr Fac Upp Upp Zhi Pro Fac Upp Upp War Pro Res Tes Total 9806 | 55 283 1929 1132 336 383 1247 185 302 444 443 512 557 577 901 520 Wait 488 | . 131 67 . 4 24 27 10 14 57 22 16 39 15 57 5 Move 8338 | 40 137 1750 1104 305 325 1164 163 281 330 357 468 471 493 624 326 Hop . | . . . . . . . . . . . . . . . . Pick Up 97 | 1 7 19 11 1 6 6 1 1 2 4 4 4 5 17 8 Fast Attach 54 | 6 1 3 2 7 2 2 5 . 6 1 . 1 . 4 14 Attach 55 | . . 8 1 2 4 1 . . 2 1 . 2 2 14 18 Detach 6 | . . . . . . 1 . . 1 . . . . 1 3 Swap 83 | . 2 2 1 . 1 9 . . 9 7 3 10 12 20 7 Drop 95 | . 2 13 13 3 6 6 5 1 8 2 4 5 4 5 18 Fire 450 | 8 3 66 . 14 15 21 1 5 25 15 15 25 25 130 82 Melee 4 | . . . . . . . . . . . . . . . 4 Ram . | . . . . . . . . . . . . . . . . Kick . | . . . . . . . . . . . . . . . . Crush . | . . . . . . . . . . . . . . . . Escape Stasis 20 | . . . . . . . . . . . . . . . 20 Rewire 60 | . . . . . . 1 . . 1 29 . . 10 4 15 Trap 1 | . . 1 . . . . . . . . . . . . . Miscellaneous 55 | . . . . . . 9 . . 3 5 2 . 11 25 . Route ------- -11/Scrapyard -10/Materials -10/Subcaves (discovered 4 exits: [*Mat x2] / [*Rec] / [*Scr]) -7/Scraptown -5/Factory (discovered 2 exits: [*Upp] / Ext) -5/Upper Caves -5/Upper Caves (discovered 2 exits: *Fac / *Zhi) -5/Zhirov -4/Proximity Caves -4/Factory (discovered 3 exits: Res / [*Upp] / Arm) -4/Upper Caves -4/Upper Caves -4/Warlord -3/Proximity Caves -3/Research (discovered 3 exits: *Res x2 / *Tes) -3/Testing (discovered 1 exit: Res) History --------- Turn | Location | Event 7 | -11/Scrapyard | Discovered new exit (range 15) 94 | -11/Scrapyard | Entered Materials 317 | -10/Materials | Build established: Mutant 456 | -10/Materials | Discovered new exit (range 5) 465 | -10/Materials | Entered Subcaves 466 | -10/Subcaves | Approached by a straggling Scientist 485 | -10/Subcaves | Discovered new exit (range 7) 570 | -10/Subcaves | Scientist uncovered a shortcut to Scraptown 591 | -10/Subcaves | Discovered new exit (range 13) 673 | -10/Subcaves | Discovered new exit (range 13) 1601 | -10/Subcaves | Core integrity fell below 50% 1633 | -10/Subcaves | Lost 3 parts (1p1n1w) 1756 | -10/Subcaves | Shifting Twisted Machinery released Piercing Trap 1763 | -10/Subcaves | Shifting Twisted Machinery released Sub. Power Source 2248 | -10/Subcaves | Learned location of Zion (-7) 2248 | -10/Subcaves | Met a Zionite searching for "candidates" 3075 | -10/Subcaves | Visited 4L-MR0's lab 3090 | -10/Subcaves | Found Prototype Special Melee Weapon 3098 | -10/Subcaves | Found Powered Cannon 3099 | -10/Subcaves | Attached Powered Cannon, gained temporary slot: Power 3558 | -10/Subcaves | Entered Scraptown 3758 | -7/Scraptown | Visited TADAMA 4085 | -7/Scraptown | Scanned Subdweller tech in exchange for log data 4088 | -7/Scraptown | Learned Factory trap positions 4110 | -7/Scraptown | Discovered new exit (range 11) 4253 | -7/Scraptown | Visited Symbiants 4262 | -7/Scraptown | Visited Observation Area 4323 | -7/Scraptown | Visited IN-MT5's Study 5259 | -7/Scraptown | Visited SPCMW 5331 | -7/Scraptown | Visited CPS Storage 5413 | -7/Scraptown | Entered Factory 5413 | -5/Factory | Evolved 10 slots: Utility x6, Weapon x4 5414 | -5/Factory | Identified exit to Extension 5415 | -5/Factory | Loaded intel: 109 trap records 5824 | -5/Factory | Discovered new exit (range 15) 5859 | -5/Factory | Garrison activated, responded to threat 5872 | -5/Factory | Entered Upper Caves 6127 | -5/Upper Caves | Learned Factory security intel 6148 | -5/Upper Caves | Identified exit to Upper Caves 6352 | -5/Upper Caves | Identified 1B-0RG's Assimilator 6365 | -5/Upper Caves | Entered another Upper Caves area 6365 | -5/Upper Caves | Assimilating S1-ILF(S) into Collective. 6375 | -5/Upper Caves | Assimilating AX-G13(S) into Collective. 6383 | -5/Upper Caves | Assimilating P2-7NP(S) into Collective. 6623 | -5/Upper Caves | Assimilating FW-IHB(k) into Collective. 6778 | -5/Upper Caves | Learned Factory emergency access door positions 6910 | -5/Upper Caves | Assimilating Warden 6a into Collective. 6934 | -5/Upper Caves | Assimilating Soldier 6a into Collective. 7025 | -5/Upper Caves | Attracted the attention of an 0b10 base 7057 | -5/Upper Caves | Learned location of 1 exit from Proximity Caves 7057 | -5/Upper Caves | Learned 8 Factory zone layouts 7057 | -5/Upper Caves | Learned Research emergency access door positions 7057 | -5/Upper Caves | Learned Armory emergency access door positions 7057 | -5/Upper Caves | Learned Factory stockpile data 7169 | -5/Upper Caves | Discovered new exit (range 13) 7486 | -5/Upper Caves | Ambushed by research squad 7491 | -5/Upper Caves | Assimilating Slayer 6a into Collective. 7704 | -5/Upper Caves | Discovered new exit (range 20) 7733 | -5/Upper Caves | Assimilating I8-5LX(r) into Collective. 8279 | -5/Upper Caves | Learned Factory trap positions 8350 | -5/Upper Caves | Entered Zhirov 8350 | -5/Zhirov | Accompanied by 5 allies 8350 | -5/Zhirov | Discovered new exit (range 3) 8379 | -5/Zhirov | Met Zhirov 8410 | -5/Zhirov | Learned location of Quarantine (-2) 8410 | -5/Zhirov | Learned location of Testing (-3) 8410 | -5/Zhirov | Learned location of Command (-1) 8424 | -5/Zhirov | Zhirov requested help retrieving the SGEMP Prototype 8476 | -5/Zhirov | Found Alien Artifact 8476 | -5/Zhirov | Identified Integrated Dissipator 8476 | -5/Zhirov | Installed Integrated Dissipator, increased core heat dissipation (+20) 8498 | -5/Zhirov | Found Alien Artifact 8609 | -5/Zhirov | Build established: Derelict-Mutant 8634 | -5/Zhirov | Entered Proximity Caves 8634 | -4/Proximity Caves | Accompanied by 5 allies 8635 | -4/Proximity Caves | Identified exit to Factory 8722 | -4/Proximity Caves | Attracted the attention of an 0b10 checkpoint 9110 | -4/Proximity Caves | Entered Factory 9110 | -4/Factory | Accompanied by 5 allies 9110 | -4/Factory | Evolved 2 slots: Power x1, Utility x1 9111 | -4/Factory | Identified exit to Armory 9112 | -4/Factory | Identified exit to Research 9113 | -4/Factory | Loaded intel: 143 trap records 9205 | -4/Factory | Repaired Adv. Shield Generator 9224 | -4/Factory | Assimilating Artificer 7a into Collective. 9451 | -4/Factory | Found Quantum Capacitor 9455 | -4/Factory | Found Quantum Capacitor 9519 | -4/Factory | Found Prototype Processor 9519 | -4/Factory | Identified Exp. Signal Interpreter 9630 | -4/Factory | Spotted B-86 Titan 9654 | -4/Factory | Assimilating Titan 7a into Collective. 9718 | -4/Factory | Discovered new exit (range 13) 9761 | -4/Factory | Build established: Mutant 9776 | -4/Factory | Entered Upper Caves 9776 | -4/Upper Caves | Accompanied by 2 allies 9793 | -4/Upper Caves | Assimilating J9-N8P(k) into Collective. 9848 | -4/Upper Caves | Learned location of Armory (-4) 10076 | -4/Upper Caves | Assimilating Assassin 7a into Collective. 10081 | -4/Upper Caves | Assimilating Assassin 7b into Collective. 10161 | -4/Upper Caves | Attracted the attention of an 0b10 outpost 10248 | -4/Upper Caves | Assimilating Veteran 7a into Collective. 10281 | -4/Upper Caves | Assimilating Sentinel 7a into Collective. 10395 | -4/Upper Caves | Discovered new exit (range 16) 10452 | -4/Upper Caves | Entered another Upper Caves area 10452 | -4/Upper Caves | Accompanied by 5 allies 10731 | -4/Upper Caves | Encountered a Warlord checkpoint 10758 | -4/Upper Caves | Assimilating IU-P78(M) into Collective. 11215 | -4/Upper Caves | Discovered new exit (range 16) 11248 | -4/Upper Caves | Entered Warlord 11248 | -4/Warlord | Accompanied by 5 allies 11249 | -4/Warlord | Identified exit to Proximity Caves 11427 | -4/Warlord | Warlord's base attacked by MAIN.C 11452 | -4/Warlord | Found Prototype Energy Cannon 11455 | -4/Warlord | Found Prototype Energy Cannon 11537 | -4/Warlord | Learned 4 Research zone layouts 11537 | -4/Warlord | Learned 4 Access zone layouts 11537 | -4/Warlord | Learned 4 Testing zone layouts 11537 | -4/Warlord | Learned 4 Armory zone layouts 11537 | -4/Warlord | Learned Factory repair station intel 11537 | -4/Warlord | Learned Factory garrison access intel 11537 | -4/Warlord | Learned Research terminal intel 11777 | -4/Warlord | Warlord forces counterattacked 11856 | -4/Warlord | Met Warlord 11976 | -4/Warlord | Spotted Striker 11985 | -4/Warlord | Spotted Striker 11989 | -4/Warlord | Destroyed Striker 11993 | -4/Warlord | Allies destroyed Striker 12055 | -4/Warlord | Destroyed 11 combat bots 12058 | -4/Warlord | Spotted Striker 12080 | -4/Warlord | Allies destroyed Striker 12102 | -4/Warlord | Warlord base infiltrated, sounded retreat 12110 | -4/Warlord | Identified Vortex Driver (x2) 12112 | -4/Warlord | Entered Proximity Caves 12114 | -3/Proximity Caves | Assimilating X9-3A2(S) into Collective. 12126 | -3/Proximity Caves | Assimilating Veteran 8a into Collective. 12134 | -3/Proximity Caves | Assimilating Enforcer 8a into Collective. 12137 | -3/Proximity Caves | Assimilating Veteran 8b into Collective. 12143 | -3/Proximity Caves | Assimilating Veteran 8c into Collective. 12261 | -3/Proximity Caves | Attracted the attention of an 0b10 outpost 12284 | -3/Proximity Caves | Assimilating Warden 8a into Collective. 12338 | -3/Proximity Caves | Assimilating Champion 8a into Collective. 12360 | -3/Proximity Caves | Assimilating Veteran 8d into Collective. 12369 | -3/Proximity Caves | Assimilating Archangel 8a into Collective. 12450 | -3/Proximity Caves | Build established: Scavenger-Mutant 12848 | -3/Proximity Caves | Assimilating Swordsman 8a into Collective. 12899 | -3/Proximity Caves | Assimilating Veteran 8e into Collective. 12966 | -3/Proximity Caves | Discovered exit to Research (range 8) 13016 | -3/Proximity Caves | Entered Research 13016 | -3/Research | Accompanied by 5 allies 13016 | -3/Research | Evolved 2 slots: Propulsion x1, Utility x1 13017 | -3/Research | Identified exit to Research 13017 | -3/Research | Identified exit to Testing 13019 | -3/Research | Loaded intel: 24 terminal locations 13128 | -3/Research | Identified Transdimensional Reconstructor 13220 | -3/Research | Assimilating Engineer 8a into Collective. 13305 | -3/Research | Lost 4 allies 13309 | -3/Research | Assimilating Master 8a into Collective. 13314 | -3/Research | Assimilating Artificer 8a into Collective. 13354 | -3/Research | Assimilating Processor 8a into Collective. 13376 | -3/Research | Spotted B-86 Titan 13499 | -3/Research | Assimilating Master 8b into Collective. 13542 | -3/Research | Assimilating Serf 8a into Collective. 13551 | -3/Research | Assimilating Processor 8b into Collective. 13558 | -3/Research | Assimilating Engineer 8b into Collective. 13604 | -3/Research | Assimilating Engineer 8c into Collective. 13658 | -3/Research | Assimilating Serf 8b into Collective. 13687 | -3/Research | Assimilating Conveyor 8a into Collective. 13745 | -3/Research | Assimilating Serf 8c into Collective. 13755 | -3/Research | Assimilating Serf 8d into Collective. 13770 | -3/Research | Lost 4 allies 13814 | -3/Research | Assimilating Veteran 8f into Collective. 13818 | -3/Research | Assimilating Veteran 8g into Collective. 13822 | -3/Research | Assimilating Veteran 8h into Collective. 13851 | -3/Research | Lost 4 parts (2p1n1u) 13858 | -3/Research | Discovered exit to Research (range 17) 13867 | -3/Research | Lost 5 allies 14001 | -3/Research | Assimilating Enforcer 8b into Collective. 14005 | -3/Research | Garrison activated, responded to threat 14016 | -3/Research | First assault squad dispatched 14062 | -3/Research | Assimilating Artificer 8b into Collective. 14067 | -3/Research | Lost 3 parts (1p1n1w) 14110 | -3/Research | Found Fusion Bomb Launcher 14152 | -3/Research | Assimilating Excavator 8a into Collective. 14181 | -3/Research | Entered Testing 14181 | -3/Testing | Accompanied by 5 allies 14364 | -3/Testing | Rewired PH-PCXUS2KRS5 14408 | -3/Testing | Scanned by Researcher 14421 | -3/Testing | Core integrity fell below 50% 14480 | -3/Testing | Core integrity fell below 20% 14501 | -3/Testing | Protovariant out of control (PH-PCXUS2KRS5) 14502 | -3/Testing | Lost 6 parts (2p2n1u1w) 14502 | -3/Testing | Spotted PH-PCXUS2KRS5 14527 | -3/Testing | Spotted Striker 14532 | -3/Testing | Lost 3 allies 14532 | -3/Testing | Destroyed PH-PCXUS2KRS5 14536 | -3/Testing | Warped through subspace 14559 | -3/Testing | Lost 5 parts (1p1n1u2w) 14770 | -3/Testing | Build established: Scavenger-Gunner 15001 | -3/Testing | Found Prototype Energy Cannon 15001 | -3/Testing | Identified Potential Cannon 15045 | -3/Testing | System corruption reached 10% 15060 | -3/Testing | Spotted Investigator 15072 | -3/Testing | Destroyed Investigator 15113 | -3/Testing | Destroyed 11 combat bots 15127 | -3/Testing | Destroyed by H-77 Assassin with Coil Gun Last Messages --------------- 15124_ Penetrated by Slug. 15124_ Hvy. Dispersion Rifle destroyed. 15124_ K-01 Serf destroyed. 15124_ Potential Cannon destroyed. 15124_ U-05 Engineer builds a Wall. 15124_ Slug penetrates Wall. 15124_ Penetrated by Slug. 15124_ Dropped Lgt. Antimatter Reactor. 15125_ Penetrated by Slug. 15125_ Slug penetrates K-01 Serf. 15125_ Dropped Lgt. Antimatter Reactor. 15125_ Dropped HERF Cannon. 15126_ K-01 Serf collects debris. 15126_ Dropped Adv. Variable Charge Gun. 15126_ Dropped Quantum Capacitor. 15127_ Dropped Adv. Energy Well. 15127_ K-01 Serf collects debris. 15127_ U-05 Engineer builds a Wall. 15127_ Penetrated by Slug. 15127_ Slug penetrates Wall. Map ----- +----------------------------------------------------+ | ############## #????????# #?????? | | # #"" #????????# #?????? | | # #"T ^ [ #????????# #?????? | | # #"" %$########????????# #?????? | | # """ # """ #???????????????# ####??? | | # """" # """ #????????????#### #??? | | # "" # """ ############## #??? | | # " + """ != T" #??? | | # "" #^ """=|=! "" ####??? | | # "" " # ^ !! ############## #?????? | | # """" #^ """ """*!#???????????????????????? | | # """" # ^""" """ #???????????????????????? | | # # """ """ #???????????????????????? | | ############"# ^""" """ #??#????????????????????? | | ???????????# # """ """ #???????????????????????? | | ############"# ########????????????????? | | # # """ """g # """!"##???????????????? | | # # """ """ !# " "###??????????????? | | # """""" # """ """ # ! "" ##?????????????? | | # """""" # """ """ # != [# #???? ????????? | | # """""" # "" "" |+! # #?####? ???????? | | # ! """""" + %# " ### ## #??#??????? | | # """""" # ###### ## # #??????? | | # """""" # =|#% ; ;;;;# # #??????? | | # ####+### *%!]%% % # "# | | # [## # [[@]! = % + """"# | | # ## # !*!*![[ %######+# """"# | | # ## # [ #! /! #??????? | | ############### # * # !/! #??????? | | ??????????????# # =% # // #??????? | | ????????????? # # | != ; #??????? | | ??????????????# = ######% ]!%%$$;k """ #??????? | | ??????????????# #??# #%u %!!!%hh """ #??????? | | ???????????#??# #??# # #[=k=$$; R" ##?? ??? | | ??????????????# #??# # %*% #! """ ## ??? | | ??????????????# #??### *%! ## "" ## "?? | | ??????????????# ]#???#"=% %* #? !# ?? | | ??????????????#######??? "* ! k m ###### ?? | | ???????????????????????##"% [" #### ##? | | ???????????????????????#=" [ % = = ? | | ???????????????????????# "= h = = | | ???????????????????????##"[%[ " | | ????????????????????????## " | | ?????????????????????????# ;#;# ## = " | | ?????????????????????????# # " * | | ?????????????????????? #### # ! # ? | | ?????????????????? ## #?#?? #??? | | ?????????????????# ##########?# ?????? """ / ?? | | ???????????????????????? #??##??????""" # ?? | | ??????????????????????? # #????????????????????? | +----------------------------------------------------+ Best States ------------- Heat Dissipation 130 Energy Generation 41 Energy Capacity 1110 Matter Stores 540 Matter Capacity 550 Sight Range 22 Terrain Scan Range 20 Terrain Scan Density 210 Corruption Block 15 Armor Coverage 450 Resistance: TH 30 Power Shielding 90 Point Defense Rating 240 Evasion (%) 40 Targeting Accuracy 8 Target Analysis 8 Core Analysis 6 Recoil Reduction 2 Item Schematics ----------------- Exp. Heat Sink | -5/Zhirov | Free Assault Drone Bay | -5/Zhirov | Free Exp. Optical Array | -5/Zhirov | Free Imp. Arc Thrower | -5/Zhirov | Free Hvy. Antimatter Reactor | -3/Testing | Archive Com. Mass Driver | -3/Testing | Archive Hvy. Neutron Cannon | -3/Testing | Archive Exp. Myomer Leg | -3/Testing | Archive Hvy. Wave Gun | -3/Testing | Archive Helical Railgun | -3/Testing | Archive Quantum Shading Machine | -3/Testing | Archive Exp. System Shield | -3/Testing | Archive Exp. Target Analyzer | -3/Testing | Archive Prc. Phase Gun | -3/Testing | Archive Hvy. Proton Missile Launcher | -3/Testing | Archive Robot Schematics ------------------ B-74 Champion | -3/Testing | Archive B-60 Warrior | -3/Testing | Archive R-06 Scavenger | -3/Testing | Archive M-30 Cleanser | -3/Testing | Archive Fabricated ------------ Nothing Repaired ---------- Adv. Shield Generator | 16% | -4/Factory Studied --------- Centrium Wheel | -3/Research | Hacked Alien Tech Used ----------------- Integrated Dissipator Transdimensional Reconstructor Achievements -------------- I, Locutus My Bad My Business Is Booming Challenges ------------ None Game ------ Seed ReactionAlphaBlade Manual? 0 Play Time 01:53:25 Cumulative 279.3 hours Start 2026.03.05 @ 19:01:39 End 2026.03.05 @ 21:11:32 Sessions 3 Manual Loads 0 Difficulty Rogue Special Mode None Game No. 213 Rogue 213 Adventurer 0 Explorer 0 Win Type - Total 12 Types 8/0/3/1/0/0/0/0/0/0 Lore% 85 Gallery% 71 Achievement% 58 Wizard Run 0 Options --------- Layout 1 ASCII 0 Keyboard 0 Movement Numpad Keybinds 0 Fullscreen 1 Font 24/Smallcaps Map View 50x35 Zoom Use 0% Tactical HUD 1 Map Filters NONE Filters NONE Steam 1 RUN: aec58950-3e08-4330-bb66-ce5dd9976cf1